Cogmind - Beta 17.1 @@@ ROGUE MODE // 2026.09.12 @ 23:49:01 Player: Bunch Result: Destroyed by L-31 Rogue with Katana Performance ------------- Evolutions (1) 500 Regions Visited (5) 1000 Robots Destroyed (53) 265 Value Destroyed (1109) 1109 Prototype IDs (5) 100 Alien Tech Used (0) 0 Bonus (294) 294 TOTAL SCORE: 3268 Bonus ------- Aligned with FarCom 300 Friendly Fire -6 Cogmind --------- Core Integrity 0/400 Matter 300/300 Energy 144/250 System Corruption 12% Temperature Cool (0) Movement Treading (240) Ox1 Location -8/Mines Parts ------- > --- POWER (2) -------- Ion Engine > --- PROPULSION (3) --- Light Treads > --- UTILITY (2) ------ Large Storage Unit Signal Interpreter > --- WEAPON (2) ------- Latent Energy Streamer > --- INVENTORY (15) --- Light Ion Engine Aluminum Leg Improved Heat Sink Medium Storage Unit High-capacity Matter Pod (200) Structural Scanner Structural Scanner Field Recycling Unit (30) Improved EM Shotgun Heavy Assault Rifle Grenade Launcher Katana EMP Trap EMP Trap Peak State ------------ > --- POWER ------------ Ion Engine Improved Ion Engine > --- PROPULSION ------- Light Treads Improved Treads Improved Treads > --- UTILITY ---------- Large Storage Unit Signal Interpreter > --- WEAPON ----------- Latent Energy Streamer Field Lobotomy Kit > --- INVENTORY -------- Improved Heat Sink Medium Storage Unit High-capacity Matter Pod Structural Scanner Structural Scanner Field Recycling Unit Improved EM Shotgun Heavy Assault Rifle Grenade Launcher Katana EMP Trap EMP Trap [Rating: 32] Favorites ----------- Power Ion Engine Engine Ion Engine Power Core Nuclear Core Propulsion Aluminum Leg Treads Improved Treads Leg Aluminum Leg Utility Signal Interpreter Device Improved Heat Sink Storage Large Storage Unit Processor Signal Interpreter Protection Light Armor Plating Weapon Grenade Launcher Energy Gun Beam Rifle Energy Cannon Latent Energy Streamer Ballistic Gun Assault Rifle Launcher Grenade Launcher Special Weapon Field Lobotomy Kit Slashing Weapon Katana Build | -11 -10 -9 -9 -9 -8 ------- Run | Yrd Mat Mat Min Exi Min Slots Evolved 2 | . . 2 . . . Power 1 | . . 1 . . . Propulsion 1 | . . 1 . . . Utility . | . . . . . . Weapon . | . . . . . . Parts Attached 38 | 6 6 23 1 2 . Power 8 | 1 . 7 . . . Engine 5 | 1 . 4 . . . Core 3 | . . 3 . . . Reactor . | . . . . . . Propulsion 8 | 2 2 4 . . . Treads 3 | . . 3 . . . Leg 5 | 2 2 1 . . . Wheel . | . . . . . . Hover . | . . . . . . Flight . | . . . . . . Utility 9 | 1 3 5 . . . Device 3 | . 2 1 . . . Storage 3 | 1 . 2 . . . Processor 2 | . . 2 . . . Hackware . | . . . . . . Protection 1 | . 1 . . . . Artifact . | . . . . . . Weapon 13 | 2 1 7 1 2 . Energy Gun 1 | . . 1 . . . Energy Cannon 1 | . . . . 1 . Ballistic Gun 5 | 2 . 3 . . . Ballistic Cannon . | . . . . . . Launcher 3 | . 1 1 1 . . Special Weapon 2 | . . 1 . 1 . Impact Weapon . | . . . . . . Slashing Weapon 1 | . . 1 . . . Piercing Weapon . | . . . . . . Special Melee Weapon . | . . . . . . Unidentified Prototypes 2 | . . . . 2 . Parts Lost 15 | . 2 11 . . 2 Power 4 | . . 4 . . . Propulsion 6 | . 1 3 . . 2 Utility 1 | . 1 . . . . Weapon 4 | . . 4 . . . Highest Loss Streak 4 | . 1 4 . . 2 To Critical Strikes . | . . . . . . Average Backups 7 | . 5 7 7 8 10 Power . | . 1 1 . . . Propulsion . | . 1 . . . . Utility 3 | . . 3 5 5 6 Weapon 2 | . 2 2 2 3 4 Tool/Special . | . . . . . . Unused Backups 8 | . . 2 . 1 5 Power 1 | . . 1 . . . Propulsion 1 | . . . . . 1 Utility 3 | . . 1 . . 2 Weapon 3 | . . . . 1 2 Tool/Special . | . . . . . . Average Slot Usage (%) 97 | . 98 95 100 99 95 Engine 15 | . 14 9 22 22 22 Core 4 | . . 11 . . . Treads 16 | . . 12 33 33 31 Leg 13 | . 27 17 . . . Device 5 | . 10 5 . . . Storage 11 | . 14 11 11 11 11 Processor 5 | . . 5 11 11 11 Energy Gun 1 | . . 4 . . . Ballistic Gun 9 | . 20 8 2 . . Launcher 10 | . 7 5 19 17 . Peak Build Rating 32 | 6 10 18 14 32 32 Average Rating 13 | 4 8 14 13 17 29 On Entrance 12 | . 6 9 14 14 32 Avg Prop Armor Cover (%) . | . . . . . . Naked Turns . | . . . . . . Heaviest Build 50 | 13 16 38 38 50 50 Greatest Support 66 | 20 20 66 66 66 66 Greatest Overweight (x) 9 | . 1 9 . . . Average Overweight (x) . | . . . . . . Largest Inventory Capacity 15 | 8 8 15 15 15 15 Average Capacity 11 | 6 8 11 15 15 15 Most Carried 15 | 3 8 10 13 15 14 Average Carried 8 | . 6 7 9 13 12 Final Capacity 15 | 8 8 15 15 15 15 Final Carried 14 | 1 7 7 13 12 14 Class Distribution -------------------- 97% | Mutant Dominant Class ---------------- Mutant | -10/Materials Mutant | -9/Materials Mutant | -9/Mines Mutant | -9/Exiles Mutant | -8/Mines Resources | -11 -10 -9 -9 -9 -8 ----------- Run | Yrd Mat Mat Min Exi Min Matter Collected 1405 | 207 412 305 322 67 92 Remotely . | . . . . . . Salvage Created 1077 | . 393 345 165 . 174 Parts 97 | . 28 39 17 . 13 Haulers Intercepted . | . . . . . . Recyclers Shooed 1 | . . . 1 . . Parts Field Recycled 20 | . . 20 . . . Retrieved Matter 202 | . . 202 . . . Parts Self-Destructed . | . . . . . . Prevented . | . . . . . . Parts Restored . | . . . . . . Kills | -11 -10 -9 -9 -9 -8 ------- Run | Yrd Mat Mat Min Exi Min Combat Hostiles Destroyed 37 | . 13 16 6 . 2 Guns 17 | . 7 10 . . . AOE 20 | . 6 6 6 . 2 Classes Destroyed 10 | . 5 4 . . 1 Worker 5 | . 1 2 2 . . Builder 4 | . . 4 . . . Tunneler 1 | . . . . . 1 Recycler 3 | . . 1 1 . 1 Watcher 3 | . 1 2 . . . Swarmer 18 | . 3 11 4 . . Grunt 13 | . 8 2 2 . 1 Duelist 2 | . . 1 . . 1 Sentry 2 | . . 2 . . . Subdweller 2 | . 2 . . . . Best Kill Streak 14 | . 4 14 4 . 2 Combat Bots Only 9 | . 3 9 4 . 2 Max Kills in Single Turn 4 | . 4 3 4 . 1 Gunslinging . | . . . . . . Exploded 4 | . 3 1 4 . 1 Melee . | . . . . . . Uniques/NPCs Destroyed . | . . . . . . Combat | -11 -10 -9 -9 -9 -8 -------- Run | Yrd Mat Mat Min Exi Min Hostile Shots Fired 258 | . 46 181 1 . 30 Missed 76 | . 19 49 . . 8 Hits 182 | . 27 132 1 . 22 Melee 12 | . . 3 . . 9 Projectile 170 | . 27 129 1 . 13 AOE 1 | . . . 1 . . Critical Strikes 4 | . 1 2 . . 1 Damage Taken 2476 | . 477 1343 114 . 542 Core 459 | . 39 303 11 . 106 Absorbed by Shields . | . . . . . . Core Remaining (%) 92 | 100 84 . . . . Volleys Fired 145 | 4 44 78 12 . 7 Largest 2 | 2 2 2 2 . 2 Hottest 100 | 40 50 100 60 . 60 Shots Fired 253 | 8 79 128 24 . 14 Gun 172 | 8 66 98 . . . Cannon 9 | . . . . . 9 Launcher 60 | . 13 23 24 . . Special 12 | . . 7 . . 5 Kinetic 115 | 8 66 41 . . . Thermal 64 | . . 64 . . . Explosive 60 | . 13 23 24 . . Electromagnetic 9 | . . . . . 9 Robot Hit Streak 9 | 5 9 8 7 . 5 Robot Miss Streak 5 | 1 4 5 3 . 1 Penetration Max . | . . . . . . Secondary Targets 2 | . . 2 . . . Max Gunslinging Chain 1 | . . 1 . . . Shots Hit Robots 126 | 6 52 54 4 . 10 Core Hits 101 | . 32 36 13 . 20 Critical Kills . | . . . . . . Critical Parts Destroyed . | . . . . . . Critical Strikes 2 | . . 2 . . . Burn 2 | . . 2 . . . Melee Attacks 1 | . . 1 . . . Impact . | . . . . . . Slashing 1 | . . 1 . . . Piercing . | . . . . . . Sneak Attacks . | . . . . . . Combat Hostiles . | . . . . . . Follow-up Attacks . | . . . . . . Damage Inflicted 3521 | 61 1127 1402 421 . 510 Guns 1093 | 61 512 520 . . . Cannons 54 | . . . . . 54 Explosions 2318 | . 615 834 421 . 448 Melee . | . . . . . . Ramming 8 | . . . . . 8 Kinetic 716 | 61 512 143 . . . Thermal 480 | . . 425 . . 55 Explosive 1870 | . 615 834 421 . . Electromagnetic 447 | . . . . . 447 Impact . | . . . . . . Slashing . | . . . . . . Piercing . | . . . . . . Highest Corruption 12 | . . . . . 12 Average Corruption 5 | . . . . . 5 Corruption Purged . | . . . . . . Corruption Blocked . | . . . . . . Effects 4 | . . . . . 4 Matter Fused 2 | . . . . . 2 Misfires 2 | . . . . . 2 Overload Shots . | . . . . . . Overflow Damage 72 | . . 31 36 . 5 Projectiles . | . . . . . . Explosions 72 | . . 31 36 . 5 Melee . | . . . . . . Knockbacks . | . . . . . . Impact . | . . . . . . Kinetic . | . . . . . . Secondary . | . . . . . . Self-Inflicted Damage 419 | . 72 133 107 . 107 Shots 17 | . 2 6 5 . 4 Rammed 2 | . . . . . 2 Targets Rammed 3 | . 1 . . . 2 Kicked 1 | . 1 . . . . Crushed . | . . . . . . Highest Temperature 334 | . 36 334 27 . 32 Average Temperature 57 | . 9 88 11 . 11 Received Heat Transfer 288 | . 153 81 . . 54 Siege Activations . | . . . . . . Martial Activations . | . . . . . . Shielding Activations . | . . . . . . Robots Disrupted . | . . . . . . Combat Hostiles . | . . . . . . Robots Corrupted . | . . . . . . Combat Hostiles . | . . . . . . Parts Fried . | . . . . . . Impact Corruptions . | . . . . . . Robots Melted . | . . . . . . Combat Hostiles . | . . . . . . Parts Melted 2 | . . 2 . . . Heat Transferred 1260 | . . 1210 . . 50 Parts Sabotaged . | . . . . . . Parts Stolen . | . . . . . . Parts Stripped . | . . . . . . Power Chain Reactions 1 | . . . . . 1 Latent Energy Used 377 | . . . . . 377 LE Corruption 11 | . . . . . 11 Alert | -11 -10 -9 -9 -9 -8 ------- Run | Yrd Mat Mat Min Exi Min Maximum Alert Level 1 | . . 1 . . . Low Security (%) 85 | 100 100 65 100 . 100 Level 1 14 | . . 34 . . . Level 2 . | . . . . . . Level 3 . | . . . . . . Level 4 . | . . . . . . Level 5 . | . . . . . . High Security . | . . . . . . Max Security . | . . . . . . Peak Influence 364 | . 125 364 155 . 59 Initial 134 | . . 17 134 . . Average 78 | . 48 118 69 . 21 Influence Increases 1584 | . 421 833 259 . 71 Destroy 0b10 Robot/C 700 | . 220 320 120 . 40 Destroy 0b10 Robot/NC 80 | . 10 45 15 . 10 Destroy Leader 156 | . 52 74 20 . 10 Successful Hack 22 | . . 22 . . . Disable Machine 90 | . 30 60 . . . Destroy Structure 311 | . 94 117 89 . 11 Partial Spotted 15 | . 15 . . . . Lose Combat Pursuer 210 | . . 195 15 . . Influence Decreases 1584 | . 378 530 605 . 71 Entered New Map 238 | . . 26 212 . . Time Decay 1206 | . 358 415 393 . 40 Lost Part 114 | . 20 89 . . 5 Lost Ally 26 | . . . . . 26 Squads Dispatched 2 | . 1 . . . 1 Investigation . | . . . . . . Extermination . | . . . . . . Reinforcement 2 | . 1 . . . 1 Assault . | . . . . . . Garrison . | . . . . . . Intercept . | . . . . . . Searches Triggered . | . . . . . . Construction Impeded 1 | . . . . . 1 Haulers Reinforced . | . . . . . . Active Scanning Responses . | . . . . . . Cargo Convoy Interrupts . | . . . . . . Stealth | -11 -10 -9 -9 -9 -8 --------- Run | Yrd Mat Mat Min Exi Min Distress Signals 2 | . . 2 . . . Communications Jammed . | . . . . . . Distress Signals . | . . . . . . Times Spotted 68 | . 21 34 7 . 6 Peak Tracking Total 5 | . 3 5 4 . 3 Tactical Retreats 13 | . 1 11 1 . . Traps | -11 -10 -9 -9 -9 -8 ------- Run | Yrd Mat Mat Min Exi Min Traps Triggered 1 | . 1 . . . . Indirectly . | . . . . . . Trap Hack Attempts . | . . . . . . Triggered . | . . . . . . Disarmed . | . . . . . . Reprogrammed . | . . . . . . Reused . | . . . . . . Traps Extracted . | . . . . . . Installed . | . . . . . . Triggered . | . . . . . . Most Traps Carried 5 | . . . 5 5 2 Machines | -11 -10 -9 -9 -9 -8 ---------- Run | Yrd Mat Mat Min Exi Min Machines Disabled 6 | . 2 4 . . . Max in Single Turn 1 | . 1 1 . . . Machines Repaired . | . . . . . . Machines Dismantled . | . . . . . . Machines Sabotaged . | . . . . . . Overloaded Fab Kills . | . . . . . . Hacking | -11 -10 -9 -9 -9 -8 --------- Run | Yrd Mat Mat Min Exi Min Machines Accessed 5 | . 2 2 . 1 . Terminals 3 | . 2 1 . . . Fabricators . | . . . . . . Repair Stations . | . . . . . . Recycling Units . | . . . . . . Scanalyzers 1 | . . 1 . . . Garrison Access . | . . . . . . Total Hacks 32 | . 5 4 . 23 . Successful 30 | . 4 3 . 23 . Failed 2 | . 1 1 . . . Catastrophic . | . . . . . . Database Lockouts . | . . . . . . Manual 2 | . . . . 2 . Terminals 6 | . 5 1 . . . Fabricators . | . . . . . . Repair Stations . | . . . . . . Recycling Units . | . . . . . . Scanalyzers 3 | . . 3 . . . Garrison Access . | . . . . . . Terminal Hacks 28 | . 4 1 . 23 . Record 26 | . 2 1 . 23 . Prototype ID Bank 1 | . 1 . . . . Alert Level 1 | . 1 . . . . Fabricator Hacks . | . . . . . . Repair Station Hacks . | . . . . . . Recycling Unit Hacks . | . . . . . . Scanalyzer 2 | . . 2 . . . Insert Component 1 | . . 1 . . . Analyze 1 | . . 1 . . . Garrison Access Hacks . | . . . . . . Unauthorized Hacks . | . . . . . . Terminals . | . . . . . . Fabricators . | . . . . . . Repair Stations . | . . . . . . Recycling Units . | . . . . . . Scanalyzers . | . . . . . . Garrison Access . | . . . . . . Data Cores Recovered . | . . . . . . Used . | . . . . . . Hacking Detections 2 | . 1 1 . . . Full Trace Events 1 | . . 1 . . . Feedback Events . | . . . . . . Feedback Blocked . | . . . . . . Robot Schematics Acquired . | . . . . . . Robots Built . | . . . . . . Authchips . | . . . . . . Time . | . . . . . . Total Robot Build Rating . | . . . . . . Part Schematics Acquired 1 | . . 1 . . . Parts Built . | . . . . . . Authchips . | . . . . . . Time . | . . . . . . Total Part Build Rating . | . . . . . . Part Studies Acquired . | . . . . . . Parts Repaired . | . . . . . . Time . | . . . . . . Parts Recycled . | . . . . . . Recycled Matter . | . . . . . . Retrieved Matter . | . . . . . . Retrieved Components . | . . . . . . Parts Scanalyzed 1 | . . 1 . . . Part Schematics Acquired 1 | . . 1 . . . Parts Damaged . | . . . . . . Bothacking | -11 -10 -9 -9 -9 -8 ------------ Run | Yrd Mat Mat Min Exi Min Used RIF Installer . | . . . . . . Robots Hacked . | . . . . . . Non-combat . | . . . . . . Combat . | . . . . . . Robot Hacks Applied . | . . . . . . Relay Couplers Released . | . . . . . . Fabnet Peak Effective % . | . . . . . . Robots Rewired . | . . . . . . Allies Hacked . | . . . . . . Hacks Repelled . | . . . . . . Allies | -11 -10 -9 -9 -9 -8 -------- Run | Yrd Mat Mat Min Exi Min Total Allies 3 | . . . . . 3 Largest Group 1 | . . . . . 1 Highest-Rated Group 13 | . . . . . 13 Highest-Rated Ally 13 | . . . . . 13 Total Orders . | . . . . . . Ally Attacks 2 | . . . . . 2 Total Damage 17 | . . . . . 17 Kills . | . . . . . . Allies Corrupted . | . . . . . . Allies Melted . | . . . . . . Field Lobotomies 3 | . . . . . 3 Intel | -11 -10 -9 -9 -9 -8 ------- Run | Yrd Mat Mat Min Exi Min Active Infowar (turns) 618 | . 536 82 . . . Structural 618 | . 536 82 . . . Robot Analysis Total . | . . . . . . Derelict Logs Recovered 1 | . . . 1 . . Drone Launches . | . . . . . . Drone Recoveries . | . . . . . . Exploration | -11 -10 -9 -9 -9 -8 ------------- Run | Yrd Mat Mat Min Exi Min Turns Passed 5435 | 183 1408 1901 958 827 158 Spaces Moved 3252 | 151 987 978 559 510 67 Core 46 | 33 . 13 . . . Treads 1539 | . . 403 559 510 67 Legs 1667 | 118 987 562 . . . Wheels . | . . . . . . Hover . | . . . . . . Flight . | . . . . . . Fastest Speed 50 | 50 120 120 160 160 160 Average Speed 142 | 104 120 151 160 160 160 Slowest Speed 500 | 120 190 500 160 160 160 Overloaded Moves . | . . . . . . Propulsion Burnouts . | . . . . . . Robots Hopped . | . . . . . . Potential Cave-ins . | . . . . . . Cave-ins Triggered . | . . . . . . Exploration Rate (%) 49 | 5 81 51 82 65 11 Regions Visited 5 Branch Regions 3 Pre-discovered Areas 1 | . . . . 1 . Known Exits Taken 3 | . . 1 1 1 . Unknown Exits Taken 2 | 1 1 . . . . Scrap Searched 2 | . . . 2 . . Spaces Dug . | . . . . . . Terrain Destroyed 386 | . 104 138 130 . 14 Melee . | . . . . . . Projectile 3 | . . 3 . . . AOE 383 | . 104 135 130 . 14 Terrain Rammed . | . . . . . . Walls Destroyed . | . . . . . . Machines Disabled . | . . . . . . Actions | -11 -10 -9 -9 -9 -8 --------- Run | Yrd Mat Mat Min Exi Min Total 3794 | 169 1132 1269 599 525 100 Wait 251 | . 75 131 21 2 22 Move 3247 | 150 986 977 558 509 67 Hop . | . . . . . . Pick Up 55 | 7 12 24 6 4 2 Fast Attach . | . . . . . . Attach 50 | 7 10 30 1 2 . Detach 24 | 1 4 16 1 2 . Swap 3 | . . 3 . . . Drop 14 | . . 9 . 5 . Fire 145 | 4 44 78 12 . 7 Melee 1 | . . 1 . . . Ram . | . . . . . . Kick 1 | . 1 . . . . Crush 2 | . . . . . 2 Escape Stasis . | . . . . . . Rewire 1 | . . . . 1 . Trap . | . . . . . . Miscellaneous . | . . . . . . Route ------- -11/Scrapyard -10/Materials (discovered 4 exits: *Mat x2 / [*Min] / [Sub]) -9/Materials (discovered 2 exits: *Mat / *Min) -9/Mines (discovered 2 exits: *Mat / *Exi) -9/Exiles -8/Mines History --------- Turn | Location | Event 7 | -11/Scrapyard | Discovered new exit (range 15) 184 | -11/Scrapyard | Entered Materials 301 | -10/Materials | Build established: Mutant 473 | -10/Materials | Discovered new exit (range 8) 641 | -10/Materials | Discovered new exit (range 16) 784 | -10/Materials | Derelicts attacked the area 972 | -10/Materials | Discovered new exit (range 16) 1190 | -10/Materials | Discovered new exit (range 8) 1592 | -10/Materials | Entered another Materials area 1592 | -9/Materials | Evolved 2 slots: Power x1, Propulsion x1 1940 | -9/Materials | Lost 4 parts (2p2w) 2633 | -9/Materials | Core integrity fell below 50% 2638 | -9/Materials | Lost 3 parts (3n) 2865 | -9/Materials | Lost 3 parts (2p1w) 2891 | -9/Materials | Destroyed 9 combat bots 3031 | -9/Materials | Discovered new exit (range 5) 3042 | -9/Materials | Identified exit to Materials 3477 | -9/Materials | Discovered new exit (range 11) 3491 | -9/Materials | Identified exit to Mines 3493 | -9/Materials | Entered Mines 3588 | -9/Mines | Assembled infested the area 3668 | -9/Mines | YI-UF0 nonchalantly dropped a Grenade Launcher on the ground 3736 | -9/Mines | Met 8R-AWN 4007 | -9/Mines | Discovered exit to Materials (range 11) 4199 | -9/Mines | Found a hidden stash of uninstalled traps 4443 | -9/Mines | Discovered new exit (range 5) 4449 | -9/Mines | Identified exit to Exiles 4451 | -9/Mines | Entered Exiles 4522 | -9/Exiles | Welcomed by 8R-AWN 4543 | -9/Exiles | Met EX-HEX 4656 | -9/Exiles | Met EX-DEC 4684 | -9/Exiles | Learned location of Zion (-6) 4775 | -9/Exiles | Discovered new exit (range 14) 4804 | -9/Exiles | Identified exit to Mines 4937 | -9/Exiles | Met EX-BIN 4969 | -9/Exiles | Aligned with FarCom system 4970 | -9/Exiles | Given EX-Vault access code 5050 | -9/Exiles | Opened EX-Vault 5090 | -9/Exiles | Found Prototype Ballistic Gun 5094 | -9/Exiles | Found Prototype Special Weapon 5095 | -9/Exiles | Identified Field Lobotomy Kit 5109 | -9/Exiles | Found Prototype Energy Cannon 5111 | -9/Exiles | Identified Latent Energy Streamer 5150 | -9/Exiles | Warned to stay clear of 0b10 Research branches 5278 | -9/Exiles | Stole two prototypes: Field Lobotomy Kit, Latent Energy Streamer 5278 | -9/Exiles | Entered Mines 5298 | -8/Mines | Core integrity fell below 20% 5313 | -8/Mines | Assimilated G-47 Trooper with FLK Orb 5392 | -8/Mines | Assimilated G-47 Trooper with FLK Orb 5396 | -8/Mines | Assimilated G-47 Trooper with FLK Orb 5425 | -8/Mines | System corruption reached 10% 5433 | -8/Mines | Lost 3 allies 5436 | -8/Mines | Destroyed by L-31 Rogue with Katana Last Messages --------------- generation is a net positive, and consider deactivating power-draining parts if not. 05401_ U-05 Engineer lays Concrete. 05402_ Slug penetrates Wall. 05402_ Trooper 3a destroyed. 05403_ U-05 Engineer builds a Wall. 05405_ System corrupted: FCS attempts to trigger Latent Energy Streamer. 05405_ System corrupted: Latent Energy Streamer misfires. 05407_ ALERT: Construction progress impeded, dispatching reinforcements to local area. 05424_ T-07 Excavator destroyed. 05425_ Slug penetrates Wall. 05426_ Slammed into L-31 Rogue. 05428_ Slug penetrates Wall. 05428_ Imp. Treads destroyed. 05434_ Imp. Ion Engine severed. 05434_ Slug penetrates L-31 Rogue. 05435_ Acquired Corrupted Lgt. Ion Engine. Map ----- +----------------------------------------------------+ | ?????????????????????????????????????????????????? | | ?????????????????????????????????????????????????? | | ?????????????????????????????????????????????????? | | ?????????????????????????????????????????????????? | | ?????????????????????????????????????????????????? | | ?????????????????????????????????????????????????? | | ??????????????#??????????????????????????????????? | | ??????????? ##????????????????????????????????? | | ?????????# ????????????????????????????????? | | ?????????[[= ???????????????????????????????? | | ??????????%! ???????????????????????????????? | | ??????????# ???????????????????????????????? | | ????????### ???????????????????????????????? | | ???????? ="???????????????????????????????? | | ????????? %#???????????????????????????????? | | ?????????? ###??????????#?????????????????? | | ???????????? ##???????? #?????????????????? | | ??????????????# #???????? #?????????????????? | | ???????????????# %[ #???????? #?????????????????? | | ????????????????#= #####???? #?????????????????? | | ???????????????## #???? #?????????????????? | | ???????????????# ### #???? #?????????????????? | | ???????????????# #?# #???? #?????????????????? | | ???????????????# ##h#?### #?????????????????? | | ???????????????## ## ####= ##????????????????? | | ????????????????# ###l@=%%! ##???????????????? | | ????????????????# ####?######| ; #???????????????? | | ???????????????? ?????????#" " #???????????????? | | ???????????????###?????????# # ##???????????????? | | ???????????????????????????##=###????????????????? | | ????????????????????????????# ##?????????????????? | | ???????????????????????????##!=##????????????????? | | ???????????????????????????# / ##???????????????? | | ???????????????????????????# #???????????????? | | ???????????????????????????## #?????????????? | | ????????????????????????????## ??????????? | | ?????????????????????????????## #???????? | | ???????????????????????????????###########???????? | | ?????????????????????????????????????????????????? | | ?????????????????????????????????????????????????? | | | | | | | | | | | | | | | | | | | | | +----------------------------------------------------+ Best States ------------- Heat Dissipation 42 Energy Generation 23 Energy Capacity 415 Matter Stores 300 Matter Capacity 300 Sight Range 16 Terrain Scan Density 10 Armor Coverage 150 Evasion (%) 55 Recoil Reduction 3 Item Schematics ----------------- Imp. EM Shotgun | -9/Materials | Scanalyzed Robot Schematics ------------------ None Fabricated ------------ Nothing Repaired ---------- Nothing Studied --------- None Alien Tech Used ----------------- None Achievements -------------- None Challenges ------------ None Game ------ Seed CentriumEtherialInverter Manual? 0 Play Time 01:23:02 Cumulative 27.6 hours Start 2026.09.11 @ 22:41:45 End 2026.09.12 @ 23:49:01 Sessions 3 Manual Loads 0 Difficulty Rogue Special Mode None Game No. 55 Rogue 50 Adventurer 5 Explorer 0 Win Type - Total 0 Types 0/0/0/0/0/0/0/0/0/0 Lore% 10 Gallery% 16 Achievement% 11 Wizard Run 0 Options --------- Layout 1 ASCII 0 Keyboard 1 Movement Numpad Keybinds 0 Fullscreen 2 Font 32/Terminus Map View 55x47 Zoom Use 78% Tactical HUD 1 Map Filters NONE Filters NONE Steam 1 RUN: bd1b813b-1811-47c8-bfff-981e77c52534